[Event "Early-Titled-Tuesday-Blitz-February-27-2024"]
[Site "Chess.com"]
[Date "2024.02.27"]
[Round "8"]
[White "Janosik"]
[Black "Jospem"]
[Result "0-1"]
[WhiteElo "2864"]
[BlackElo "3069"]
[TimeControl "180+1"]
[EndTime "9:28:28 PST"]
[Termination "Jospem won by resignation"]

1. d4 {[%clk 0:03:00.3]} 1... Nf6 {[%clk 0:02:59.8]} 2. c4 {[%clk 0:03:00.1]}
2... e6 {[%clk 0:03:00.5]} 3. Nc3 {[%clk 0:03:00.6]} 3... Bb4 {[%clk 0:03:01.1]}
4. Qc2 {[%clk 0:03:01]} 4... d6 {[%clk 0:03:01.1]} 5. Bg5 {[%clk 0:02:59]} 5...
c5 {[%clk 0:02:58.6]} 6. dxc5 {[%clk 0:02:58.4]} 6... Bxc5 {[%clk 0:02:57.4]} 7.
e3 {[%clk 0:02:57.7]} 7... h6 {[%clk 0:02:55.1]} 8. Bh4 {[%clk 0:02:57.3]} 8...
Nc6 {[%clk 0:02:34.1]} 9. Nf3 {[%clk 0:02:56.9]} 9... O-O {[%clk 0:02:24.4]} 10.
Be2 {[%clk 0:02:56.7]} 10... d5 {[%clk 0:02:23.3]} 11. cxd5 {[%clk 0:02:43.1]}
11... exd5 {[%clk 0:02:23.4]} 12. Bxf6 {[%clk 0:02:38.8]} 12... Qxf6 {[%clk
0:02:23.3]} 13. O-O {[%clk 0:02:20.2]} 13... Ne7 {[%clk 0:01:48.4]} 14. Nxd5
{[%clk 0:02:14.2]} 14... Nxd5 {[%clk 0:01:49.3]} 15. Qxc5 {[%clk 0:02:14.1]}
15... Qxb2 {[%clk 0:01:49.7]} 16. Bc4 {[%clk 0:01:53.1]} 16... Nb6 {[%clk
0:01:49.1]} 17. Bb3 {[%clk 0:01:49.8]} 17... Qf6 {[%clk 0:01:49.5]} 18. Qc7
{[%clk 0:01:36.6]} 18... Be6 {[%clk 0:01:34.3]} 19. Qxb7 {[%clk 0:01:29.9]}
19... Rfb8 {[%clk 0:01:31.2]} 20. Qe4 {[%clk 0:01:26.9]} 20... Bxb3 {[%clk
0:01:23.1]} 21. axb3 {[%clk 0:01:27.8]} 21... Rd8 {[%clk 0:01:16.8]} 22. Nd4
{[%clk 0:01:25.1]} 22... Nd5 {[%clk 0:01:12.6]} 23. Rfc1 {[%clk 0:01:24.9]}
23... Rd6 {[%clk 0:00:58.3]} 24. h3 {[%clk 0:01:23.9]} 24... g6 {[%clk
0:00:58.2]} 25. Ra5 {[%clk 0:01:23.6]} 25... Qd8 {[%clk 0:00:39.8]} 26. Rc6
{[%clk 0:00:52.6]} 26... Rd7 {[%clk 0:00:29.6]} 27. Rac5 {[%clk 0:00:31.2]}
27... Kh7 {[%clk 0:00:29.7]} 28. h4 {[%clk 0:00:26.6]} 28... Qe8 {[%clk
0:00:26.1]} 29. Qf3 {[%clk 0:00:20]} 29... Rad8 {[%clk 0:00:24.7]} 30. h5 {[%clk
0:00:19.6]} 30... Ne7 {[%clk 0:00:15.9]} 31. Rf6 {[%clk 0:00:17]} 31... Ng8
{[%clk 0:00:15.4]} 32. hxg6+ {[%clk 0:00:16.8]} 32... fxg6 {[%clk 0:00:16.3]}
33. Ra6 {[%clk 0:00:16.6]} 33... Qe7 {[%clk 0:00:16]} 34. Rcc6 {[%clk
0:00:16.6]} 34... Rd6 {[%clk 0:00:07.7]} 35. Qg3 {[%clk 0:00:13]} 35... Rxc6
{[%clk 0:00:07.3]} 36. Rxc6 {[%clk 0:00:12.7]} 36... Qf7 {[%clk 0:00:07.5]} 37.
Rc7 {[%clk 0:00:11.8]} 37... Rd7 {[%clk 0:00:08.2]} 38. Rc8 {[%clk 0:00:12.4]}
38... Nf6 {[%clk 0:00:08]} 39. Qe5 {[%clk 0:00:11.4]} 39... Re7 {[%clk 0:00:07]}
40. Qb8 {[%clk 0:00:12]} 40... Kg7 {[%clk 0:00:04.2]} 41. Qa8 {[%clk 0:00:10.6]}
41... Ne4 {[%clk 0:00:03.9]} 42. Nf3 {[%clk 0:00:08]} 42... g5 {[%clk
0:00:02.8]} 43. Qb8 {[%clk 0:00:07.3]} 43... g4 {[%clk 0:00:02.5]} 44. Rc4
{[%clk 0:00:04.8]} 44... gxf3 {[%clk 0:00:02.6]} 45. g3 {[%clk 0:00:05.7]} 45...
Ng5 {[%clk 0:00:02.7]} 46. Qb4 {[%clk 0:00:04.9]} 46... Qe6 {[%clk 0:00:02.6]}
47. Qc3+ {[%clk 0:00:03.9]} 47... Qf6 {[%clk 0:00:02.2]} 48. Qc1 {[%clk
0:00:04.8]} 48... Qe6 {[%clk 0:00:02.5]} 49. Rc5 {[%clk 0:00:05.1]} 49... Rd7
{[%clk 0:00:02.9]} 50. Qc3+ {[%clk 0:00:05.2]} 50... Kf7 {[%clk 0:00:03.5]} 51.
Qc2 {[%clk 0:00:05.5]} 51... Ke7 {[%clk 0:00:02.6]} 52. Qc1 {[%clk 0:00:05.7]}
52... Qh3 {[%clk 0:00:02.7]} 53. Re5+ {[%clk 0:00:03.2]} 53... Kf6 {[%clk
0:00:02.5]} 0-1

[Event "Early-Titled-Tuesday-Blitz-February-27-2024"]
[Site "Chess.com"]
[Date "2024.02.27"]
[Round "8"]
[White "Austen48"]
[Black "Cambek64"]
[Result "0-1"]
[WhiteElo "2259"]
[BlackElo "2495"]
[TimeControl "180+1"]
[EndTime "9:28:28 PST"]
[Termination "Cambek64 won on time"]

1. d4 {[%clk 0:02:59.4]} 1... c5 {[%clk 0:02:56.1]} 2. d5 {[%clk 0:02:58.5]}
2... e5 {[%clk 0:02:54.9]} 3. e4 {[%clk 0:02:58.5]} 3... d6 {[%clk 0:02:55.1]}
4. Nc3 {[%clk 0:02:58.3]} 4... Be7 {[%clk 0:02:54.8]} 5. Bd3 {[%clk 0:02:56.7]}
5... Nf6 {[%clk 0:02:54.6]} 6. Nge2 {[%clk 0:02:55.6]} 6... O-O {[%clk
0:02:54.3]} 7. O-O {[%clk 0:02:55.5]} 7... a6 {[%clk 0:02:54.8]} 8. a4 {[%clk
0:02:54.9]} 8... Nbd7 {[%clk 0:02:55.2]} 9. Ng3 {[%clk 0:02:50.4]} 9... g6
{[%clk 0:02:53.8]} 10. h3 {[%clk 0:02:38.8]} 10... Ne8 {[%clk 0:02:50.4]} 11. f4
{[%clk 0:02:33.8]} 11... exf4 {[%clk 0:02:49.2]} 12. Bxf4 {[%clk 0:02:33.7]}
12... Bf6 {[%clk 0:02:48.7]} 13. Kh1 {[%clk 0:02:19.4]} 13... Be5 {[%clk
0:02:41.5]} 14. Ra3 {[%clk 0:02:09.7]} 14... Bxf4 {[%clk 0:02:39.2]} 15. Rxf4
{[%clk 0:02:09.7]} 15... Ne5 {[%clk 0:02:39.4]} 16. Nb1 {[%clk 0:01:56.7]} 16...
Nf6 {[%clk 0:02:27]} 17. Be2 {[%clk 0:01:52.5]} 17... Kg7 {[%clk 0:02:22.1]} 18.
Nd2 {[%clk 0:01:52.3]} 18... Nfd7 {[%clk 0:02:22.2]} 19. Qf1 {[%clk 0:01:48]}
19... Qe7 {[%clk 0:02:18.2]} 20. Qf2 {[%clk 0:01:42]} 20... b6 {[%clk 0:02:14]}
21. h4 {[%clk 0:01:36.1]} 21... Nf6 {[%clk 0:02:08.6]} 22. h5 {[%clk 0:01:33.7]}
22... h6 {[%clk 0:02:07.5]} 23. Kg1 {[%clk 0:01:25.9]} 23... Nfg4 {[%clk
0:01:54.1]} 24. Bxg4 {[%clk 0:01:22.9]} 24... Bxg4 {[%clk 0:01:35.9]} 25. Ngf1
{[%clk 0:01:12.2]} 25... b5 {[%clk 0:01:28.1]} 26. axb5 {[%clk 0:01:10.7]} 26...
axb5 {[%clk 0:01:28.3]} 27. Rg3 {[%clk 0:01:10]} 27... Bxh5 {[%clk 0:01:26.8]}
28. Ne3 {[%clk 0:01:06.8]} 28... Kh7 {[%clk 0:01:26.7]} 29. Rf6 {[%clk 0:01:02]}
29... Nd7 {[%clk 0:01:24.3]} 30. Rf4 {[%clk 0:00:56]} 30... Ra1+ {[%clk
0:01:22.5]} 31. Ndf1 {[%clk 0:00:55.8]} 31... Ne5 {[%clk 0:01:15.6]} 32. b3
{[%clk 0:00:50.3]} 32... f6 {[%clk 0:01:10.2]} 33. Rh3 {[%clk 0:00:46.7]} 33...
Nd7 {[%clk 0:00:53.4]} 34. g4 {[%clk 0:00:45.3]} 34... g5 {[%clk 0:00:49.9]} 35.
Nf5 {[%clk 0:00:33.7]} 35... Qe5 {[%clk 0:00:48.7]} 36. Rxh5 {[%clk 0:00:26.8]}
36... Qxf4 {[%clk 0:00:43.8]} 37. Rxh6+ {[%clk 0:00:26]} 37... Kg8 {[%clk
0:00:43.4]} 38. Qxf4 {[%clk 0:00:25.4]} 38... gxf4 {[%clk 0:00:43.5]} 39. Nxd6
{[%clk 0:00:24.8]} 39... Ne5 {[%clk 0:00:42.2]} 40. Nf5 {[%clk 0:00:20.7]} 40...
Rd1 {[%clk 0:00:29.8]} 41. Kg2 {[%clk 0:00:19]} 41... Ra8 {[%clk 0:00:28.4]} 42.
Rxf6 {[%clk 0:00:10]} 42... f3+ {[%clk 0:00:20.5]} 43. Kg3 {[%clk 0:00:06]}
43... Rxf1 {[%clk 0:00:18.7]} 44. Kf4 {[%clk 0:00:06.2]} 44... Nf7 {[%clk
0:00:11]} 45. Ne7+ {[%clk 0:00:04.9]} 45... Kf8 {[%clk 0:00:08.6]} 46. Ng6+
{[%clk 0:00:01.7]} 46... Kg7 {[%clk 0:00:08.3]} 47. g5 {[%clk 0:00:01.8]} 47...
f2 {[%clk 0:00:06.5]} 0-1

[Event "Early-Titled-Tuesday-Blitz-February-27-2024"]
[Site "Chess.com"]
[Date "2024.02.27"]
[Round "8"]
[White "romulocardoso"]
[Black "TitarovVasiliYouTube"]
[Result "1-0"]
[WhiteElo "2363"]
[BlackElo "2506"]
[TimeControl "180+1"]
[EndTime "9:28:33 PST"]
[Termination "romulocardoso won on time"]

1. e4 {[%clk 0:03:00.9]} 1... Nf6 {[%clk 0:02:56.5]} 2. e5 {[%clk 0:03:01]} 2...
Nd5 {[%clk 0:02:55.2]} 3. d4 {[%clk 0:03:01.9]} 3... d6 {[%clk 0:02:53.1]} 4.
Nf3 {[%clk 0:03:02.5]} 4... dxe5 {[%clk 0:02:50.3]} 5. Nxe5 {[%clk 0:03:03.4]}
5... c6 {[%clk 0:02:49.1]} 6. Bc4 {[%clk 0:03:03.2]} 6... Nd7 {[%clk 0:02:41.2]}
7. Qf3 {[%clk 0:02:54.7]} 7... Nxe5 {[%clk 0:02:33.8]} 8. dxe5 {[%clk
0:02:55.6]} 8... Be6 {[%clk 0:02:07.8]} 9. O-O {[%clk 0:02:53.7]} 9... g6 {[%clk
0:02:07.6]} 10. Rd1 {[%clk 0:02:53.2]} 10... Qa5 {[%clk 0:02:04.7]} 11. Bd2
{[%clk 0:02:51.1]} 11... Qc7 {[%clk 0:02:02.9]} 12. Nc3 {[%clk 0:02:43.2]} 12...
Rd8 {[%clk 0:01:34.2]} 13. Nxd5 {[%clk 0:02:42]} 13... Bxd5 {[%clk 0:01:33.9]}
14. Bxd5 {[%clk 0:02:42.6]} 14... Rxd5 {[%clk 0:01:34.8]} 15. Bc3 {[%clk
0:02:43.2]} 15... e6 {[%clk 0:01:24.8]} 16. Bd4 {[%clk 0:02:08.8]} 16... Bg7
{[%clk 0:01:18]} 17. c4 {[%clk 0:02:06.8]} 17... Rd7 {[%clk 0:01:08.9]} 18. Bc5
{[%clk 0:01:45.2]} 18... Bxe5 {[%clk 0:00:50.5]} 19. Rxd7 {[%clk 0:01:44.3]}
19... Qxd7 {[%clk 0:00:51.4]} 20. Rd1 {[%clk 0:01:40.5]} 20... Qc7 {[%clk
0:00:51.3]} 21. h3 {[%clk 0:01:38.6]} 21... b6 {[%clk 0:00:44.1]} 22. Ba3 {[%clk
0:01:36.5]} 22... c5 {[%clk 0:00:37.9]} 23. Qa8+ {[%clk 0:01:35.1]} 23... Qb8
{[%clk 0:00:37.9]} 24. Qc6+ {[%clk 0:01:35.1]} 24... Kf8 {[%clk 0:00:37.2]} 25.
b4 {[%clk 0:01:35.2]} 25... cxb4 {[%clk 0:00:34.5]} 26. Bxb4+ {[%clk 0:01:34.7]}
26... Kg7 {[%clk 0:00:35]} 27. Rd7 {[%clk 0:01:30.7]} 27... Qe8 {[%clk
0:00:17.7]} 28. f4 {[%clk 0:01:07.1]} 28... Bf6 {[%clk 0:00:17.5]} 29. g4 {[%clk
0:01:00.8]} 29... h6 {[%clk 0:00:16.7]} 30. Qb7 {[%clk 0:00:49.9]} 30... a5
{[%clk 0:00:09.2]} 31. Bd6 {[%clk 0:00:39]} 31... Bd4+ {[%clk 0:00:07.5]} 32.
Kg2 {[%clk 0:00:38.4]} 32... Bc3 {[%clk 0:00:03.1]} 33. Re7 {[%clk 0:00:32.6]}
33... Qg8 {[%clk 0:00:02.5]} 34. Rxe6 {[%clk 0:00:30.5]} 34... Bd4 {[%clk
0:00:01.8]} 35. Re4 {[%clk 0:00:27.2]} 35... Bf6 {[%clk 0:00:01.7]} 36. g5
{[%clk 0:00:27.2]} 36... hxg5 {[%clk 0:00:01.8]} 37. fxg5 {[%clk 0:00:27.7]}
37... Bxg5 {[%clk 0:00:02.7]} 38. Be5+ {[%clk 0:00:27.1]} 38... Bf6 {[%clk
0:00:02.5]} 39. Bxf6+ {[%clk 0:00:24.1]} 39... Kxf6 {[%clk 0:00:03.4]} 40. Qxb6+
{[%clk 0:00:24.5]} 40... Kg7 {[%clk 0:00:04.2]} 41. Qxa5 {[%clk 0:00:21.8]}
41... Qc8 {[%clk 0:00:04.3]} 42. Qe5+ {[%clk 0:00:22]} 42... Kg8 {[%clk
0:00:03.5]} 43. Rg4 {[%clk 0:00:20.3]} 43... Qa8+ {[%clk 0:00:02.6]} 44. Kg3
{[%clk 0:00:19.3]} 44... Qxa2 {[%clk 0:00:02.9]} 45. Qe8+ {[%clk 0:00:15.2]}
45... Kg7 {[%clk 0:00:03.1]} 46. Qe5+ {[%clk 0:00:15.7]} 46... Kg8 {[%clk
0:00:03.3]} 47. Rd4 {[%clk 0:00:16.2]} 47... Qb3+ {[%clk 0:00:03.1]} 48. Kf4
{[%clk 0:00:13]} 48... Qb6 {[%clk 0:00:02.3]} 49. c5 {[%clk 0:00:10.7]} 1-0

[Event "Early-Titled-Tuesday-Blitz-February-27-2024"]
[Site "Chess.com"]
[Date "2024.02.27"]
[Round "8"]
[White "GlavkonVVS"]
[Black "ViktoriyaTarasova"]
[Result "1-0"]
[WhiteElo "2530"]
[BlackElo "2314"]
[TimeControl "180+1"]
[EndTime "9:28:34 PST"]
[Termination "GlavkonVVS won on time"]

1. c4 {[%clk 0:02:56.8]} 1... e5 {[%clk 0:02:58.7]} 2. Nc3 {[%clk 0:02:56.7]}
2... Nf6 {[%clk 0:02:58.8]} 3. g3 {[%clk 0:02:57.2]} 3... Bb4 {[%clk 0:02:58]}
4. Bg2 {[%clk 0:02:57.3]} 4... O-O {[%clk 0:02:57.7]} 5. Nf3 {[%clk 0:02:57.2]}
5... Re8 {[%clk 0:02:57.4]} 6. O-O {[%clk 0:02:57.4]} 6... e4 {[%clk 0:02:57.8]}
7. Nd4 {[%clk 0:02:57.2]} 7... Nc6 {[%clk 0:02:57]} 8. Nc2 {[%clk 0:02:56.2]}
8... Bxc3 {[%clk 0:02:56.5]} 9. bxc3 {[%clk 0:02:54]} 9... d6 {[%clk 0:02:56.1]}
10. Rb1 {[%clk 0:02:49.9]} 10... b6 {[%clk 0:02:53.2]} 11. d3 {[%clk 0:02:42.7]}
11... Bb7 {[%clk 0:02:53.4]} 12. Bg5 {[%clk 0:02:39.2]} 12... Ne5 {[%clk
0:02:40.2]} 13. Ne3 {[%clk 0:02:27]} 13... h6 {[%clk 0:02:31.1]} 14. Bxf6 {[%clk
0:02:27.1]} 14... Qxf6 {[%clk 0:02:31.4]} 15. dxe4 {[%clk 0:02:26.3]} 15... Qe6
{[%clk 0:02:23.8]} 16. Qb3 {[%clk 0:02:08.8]} 16... Ba6 {[%clk 0:02:20.1]} 17.
Qa4 {[%clk 0:02:06.9]} 17... Bxc4 {[%clk 0:01:56.9]} 18. Nxc4 {[%clk 0:02:05.2]}
18... Qxc4 {[%clk 0:01:51.3]} 19. Qxc4 {[%clk 0:02:04.8]} 19... Nxc4 {[%clk
0:01:51.5]} 20. Rfd1 {[%clk 0:02:05.4]} 20... Rad8 {[%clk 0:01:42.3]} 21. Rd4
{[%clk 0:02:03.1]} 21... Ne5 {[%clk 0:01:41]} 22. f4 {[%clk 0:02:02.7]} 22...
Nd7 {[%clk 0:01:28.9]} 23. Rbd1 {[%clk 0:01:54.3]} 23... f6 {[%clk 0:01:27.9]}
24. Rd5 {[%clk 0:01:23.6]} 24... Kf7 {[%clk 0:00:57.9]} 25. Kf2 {[%clk
0:01:19.2]} 25... Nc5 {[%clk 0:00:44]} 26. e5 {[%clk 0:01:16.8]} 26... fxe5
{[%clk 0:00:43.5]} 27. fxe5 {[%clk 0:01:17]} 27... Ke7 {[%clk 0:00:43.3]} 28.
exd6+ {[%clk 0:01:11.4]} 28... Rxd6 {[%clk 0:00:43.4]} 29. Rxd6 {[%clk
0:01:10.7]} 29... cxd6 {[%clk 0:00:42.6]} 30. Bd5 {[%clk 0:01:09.2]} 30... Rc8
{[%clk 0:00:38.5]} 31. Rd4 {[%clk 0:00:53.6]} 31... Nd7 {[%clk 0:00:35.8]} 32.
Rc4 {[%clk 0:00:44.9]} 32... Rf8+ {[%clk 0:00:30.1]} 33. Ke3 {[%clk 0:00:44.2]}
33... Nc5 {[%clk 0:00:21.4]} 34. Rf4 {[%clk 0:00:41.3]} 34... Rxf4 {[%clk
0:00:20.1]} 35. gxf4 {[%clk 0:00:36.5]} 35... Kf6 {[%clk 0:00:19]} 36. Kd4
{[%clk 0:00:28.9]} 36... Kf5 {[%clk 0:00:18]} 37. e3 {[%clk 0:00:28.6]} 37...
Kg4 {[%clk 0:00:17.2]} 38. Bg2 {[%clk 0:00:23.7]} 38... Na4 {[%clk 0:00:08.3]}
39. c4 {[%clk 0:00:20.8]} 39... Nb2 {[%clk 0:00:08.2]} 40. Kd5 {[%clk
0:00:19.4]} 40... Kf5 {[%clk 0:00:07.2]} 41. Bh3+ {[%clk 0:00:19.2]} 41... Kf6
{[%clk 0:00:07]} 42. Bf1 {[%clk 0:00:19]} 42... Ke7 {[%clk 0:00:06.8]} 43. Be2
{[%clk 0:00:18.8]} 43... Na4 {[%clk 0:00:07.1]} 44. Kd4 {[%clk 0:00:17.8]} 44...
Nc5 {[%clk 0:00:07.6]} 45. e4 {[%clk 0:00:17.8]} 45... Ne6+ {[%clk 0:00:08.1]}
46. Ke3 {[%clk 0:00:18.1]} 46... Nc5 {[%clk 0:00:08.6]} 47. h4 {[%clk
0:00:18.1]} 47... Ne6 {[%clk 0:00:08.8]} 48. Bg4 {[%clk 0:00:17.7]} 48... Nc5
{[%clk 0:00:09.2]} 49. h5 {[%clk 0:00:18]} 49... Na6 {[%clk 0:00:09.5]} 50. Kd4
{[%clk 0:00:18.2]} 50... Nc5 {[%clk 0:00:10]} 51. e5 {[%clk 0:00:16.5]} 51...
dxe5+ {[%clk 0:00:10]} 52. fxe5 {[%clk 0:00:16.6]} 52... Kd8 {[%clk 0:00:10.2]}
53. Kd5 {[%clk 0:00:16.9]} 53... Kc7 {[%clk 0:00:10]} 54. e6 {[%clk 0:00:16.8]}
54... a5 {[%clk 0:00:09.2]} 55. Bf5 {[%clk 0:00:16.5]} 55... a4 {[%clk 0:00:09]}
56. e7 {[%clk 0:00:16.8]} 56... Nb7 {[%clk 0:00:04.3]} 57. e8=Q {[%clk
0:00:16.5]} 1-0

[Event "Early-Titled-Tuesday-Blitz-February-27-2024"]
[Site "Chess.com"]
[Date "2024.02.27"]
[Round "8"]
[White "LeninGuerra"]
[Black "BogdanDeac"]
[Result "0-1"]
[WhiteElo "2579"]
[BlackElo "2970"]
[TimeControl "180+1"]
[EndTime "9:28:35 PST"]
[Termination "BogdanDeac won by resignation"]

1. e4 {[%clk 0:03:00.9]} 1... c5 {[%clk 0:02:54.4]} 2. Nf3 {[%clk 0:03:00.5]}
2... d6 {[%clk 0:02:50.9]} 3. b4 {[%clk 0:03:00.5]} 3... cxb4 {[%clk 0:02:50.6]}
4. a3 {[%clk 0:03:00.8]} 4... Nf6 {[%clk 0:02:47.5]} 5. Bd3 {[%clk 0:03:00.7]}
5... bxa3 {[%clk 0:02:46.6]} 6. Bxa3 {[%clk 0:03:01.6]} 6... g6 {[%clk
0:02:44.7]} 7. O-O {[%clk 0:03:01.6]} 7... Bg7 {[%clk 0:02:44.6]} 8. c3 {[%clk
0:03:02.5]} 8... O-O {[%clk 0:02:40]} 9. Bc2 {[%clk 0:03:02.5]} 9... Qc7 {[%clk
0:02:36.6]} 10. d4 {[%clk 0:03:00.9]} 10... Rd8 {[%clk 0:02:36.8]} 11. h3 {[%clk
0:02:52.5]} 11... Nc6 {[%clk 0:02:26]} 12. Nbd2 {[%clk 0:02:48.9]} 12... b5
{[%clk 0:02:26]} 13. Qe2 {[%clk 0:02:45.7]} 13... Rb8 {[%clk 0:02:24.3]} 14.
Rfb1 {[%clk 0:02:44.9]} 14... a6 {[%clk 0:02:24.2]} 15. Bd3 {[%clk 0:02:38.4]}
15... Bb7 {[%clk 0:02:17.6]} 16. c4 {[%clk 0:02:18.2]} 16... bxc4 {[%clk
0:02:01.8]} 17. Nxc4 {[%clk 0:02:14.3]} 17... d5 {[%clk 0:02:01.2]} 18. exd5
{[%clk 0:02:10.9]} 18... Nxd5 {[%clk 0:02:00.9]} 19. Bc5 {[%clk 0:01:58]} 19...
Nf4 {[%clk 0:01:15.5]} 20. Qe3 {[%clk 0:01:55.1]} 20... Nxd4 {[%clk 0:01:15.3]}
21. Bb6 {[%clk 0:00:38.9]} 21... Nxf3+ {[%clk 0:01:08.9]} 22. Qxf3 {[%clk
0:00:27.5]} 22... Qxb6 {[%clk 0:01:01.5]} 23. Qxf4 {[%clk 0:00:26.4]} 23... Qf6
{[%clk 0:00:51]} 24. Qxf6 {[%clk 0:00:24.5]} 24... Bxf6 {[%clk 0:00:51]} 25. Ra3
{[%clk 0:00:25.1]} 25... Bd5 {[%clk 0:00:33.4]} 26. Rxb8 {[%clk 0:00:23.5]}
26... Rxb8 {[%clk 0:00:34.3]} 27. Rxa6 {[%clk 0:00:20.8]} 27... Rb3 {[%clk
0:00:34.3]} 28. Bf1 {[%clk 0:00:19.9]} 28... Rb1 {[%clk 0:00:31.5]} 29. Ne3
{[%clk 0:00:20.1]} 29... Be4 {[%clk 0:00:27.8]} 30. Ra3 {[%clk 0:00:15.5]} 30...
Bd4 {[%clk 0:00:25.3]} 31. f3 {[%clk 0:00:15.4]} 31... Bc6 {[%clk 0:00:11.5]}
32. Kf2 {[%clk 0:00:14.8]} 32... Rb2+ {[%clk 0:00:11.5]} 33. Kg3 {[%clk
0:00:13.2]} 33... f5 {[%clk 0:00:08]} 34. Rd3 {[%clk 0:00:13.3]} 34... e5 {[%clk
0:00:07]} 35. f4 {[%clk 0:00:11.3]} 35... Be4 {[%clk 0:00:04]} 36. Ra3 {[%clk
0:00:10]} 36... Bxe3 {[%clk 0:00:04.3]} 37. Rxe3 {[%clk 0:00:09.1]} 37... exf4+
{[%clk 0:00:04.5]} 38. Kxf4 {[%clk 0:00:09.6]} 38... Rf2+ {[%clk 0:00:05.1]} 39.
Kg5 {[%clk 0:00:10.2]} 39... Rxf1 {[%clk 0:00:04.8]} 40. g4 {[%clk 0:00:11.1]}
40... Kg7 {[%clk 0:00:04.5]} 41. Ra3 {[%clk 0:00:11.1]} 41... h6+ {[%clk
0:00:04.9]} 42. Kh4 {[%clk 0:00:09.9]} 42... fxg4 {[%clk 0:00:05.8]} 43. hxg4
{[%clk 0:00:09.7]} 43... g5+ {[%clk 0:00:05.8]} 44. Kg3 {[%clk 0:00:10]} 44...
Rd1 {[%clk 0:00:05.7]} 45. Ra7+ {[%clk 0:00:10.1]} 45... Kf6 {[%clk 0:00:06]}
46. Ra6+ {[%clk 0:00:10.7]} 46... Ke5 {[%clk 0:00:06.2]} 47. Rxh6 {[%clk
0:00:10.7]} 47... Rd3+ {[%clk 0:00:06.8]} 48. Kf2 {[%clk 0:00:10.8]} 48... Kf4
{[%clk 0:00:07.7]} 49. Re6 {[%clk 0:00:10]} 49... Bf3 {[%clk 0:00:06.5]} 50. Ra6
{[%clk 0:00:08.5]} 50... Rd2+ {[%clk 0:00:06.2]} 51. Ke1 {[%clk 0:00:08.4]}
51... Rd4 {[%clk 0:00:06.7]} 52. Kf2 {[%clk 0:00:08.5]} 52... Bxg4 {[%clk
0:00:07.1]} 53. Ra3 {[%clk 0:00:08.7]} 53... Bh5 {[%clk 0:00:06.5]} 54. Kg2
{[%clk 0:00:09]} 54... Rd2+ {[%clk 0:00:05.9]} 55. Kg1 {[%clk 0:00:08.6]} 55...
Bf3 {[%clk 0:00:06.1]} 56. Ra7 {[%clk 0:00:08.6]} 56... Kg3 {[%clk 0:00:06.2]}
57. Ra1 {[%clk 0:00:08.4]} 57... Rd1+ {[%clk 0:00:06]} 58. Rxd1 {[%clk
0:00:08.9]} 58... Bxd1 {[%clk 0:00:06.6]} 59. Kh1 {[%clk 0:00:09.7]} 59... Bf3+
{[%clk 0:00:07.4]} 60. Kg1 {[%clk 0:00:10.2]} 60... g4 {[%clk 0:00:08.1]} 61.
Kf1 {[%clk 0:00:10.3]} 61... Kh2 {[%clk 0:00:08.6]} 62. Kf2 {[%clk 0:00:09.8]}
62... Bg2 {[%clk 0:00:09.5]} 0-1

[Event "Early-Titled-Tuesday-Blitz-February-27-2024"]
[Site "Chess.com"]
[Date "2024.02.27"]
[Round "8"]
[White "Batica1984"]
[Black "Mikhail_Golubev"]
[Result "1/2-1/2"]
[WhiteElo "2751"]
[BlackElo "2624"]
[TimeControl "180+1"]
[EndTime "9:28:38 PST"]
[Termination "Game drawn - insufficient material"]

1. e4 {[%clk 0:02:57]} 1... c5 {[%clk 0:03:00]} 2. Nf3 {[%clk 0:02:39.6]} 2...
d6 {[%clk 0:02:59.6]} 3. d4 {[%clk 0:02:39.3]} 3... cxd4 {[%clk 0:02:59.2]} 4.
Nxd4 {[%clk 0:02:40.2]} 4... Nf6 {[%clk 0:02:59.1]} 5. Nc3 {[%clk 0:02:40.6]}
5... g6 {[%clk 0:02:59.4]} 6. Be3 {[%clk 0:02:35.8]} 6... Bg7 {[%clk 0:02:59.5]}
7. f3 {[%clk 0:02:36.3]} 7... Nc6 {[%clk 0:02:59.6]} 8. Qd2 {[%clk 0:02:36.7]}
8... O-O {[%clk 0:02:59.7]} 9. O-O-O {[%clk 0:02:36.6]} 9... d5 {[%clk
0:02:59.7]} 10. Nxc6 {[%clk 0:02:37]} 10... bxc6 {[%clk 0:02:58.5]} 11. Bh6
{[%clk 0:02:37.9]} 11... Bxh6 {[%clk 0:02:57.1]} 12. Qxh6 {[%clk 0:02:37]} 12...
Rb8 {[%clk 0:02:56.5]} 13. e5 {[%clk 0:02:36.5]} 13... Nd7 {[%clk 0:02:55]} 14.
h4 {[%clk 0:02:36.8]} 14... Nxe5 {[%clk 0:02:20.7]} 15. h5 {[%clk 0:02:35.5]}
15... Bf5 {[%clk 0:02:11.7]} 16. g4 {[%clk 0:02:10]} 16... f6 {[%clk 0:02:03]}
17. Qe3 {[%clk 0:01:50]} 17... Bd7 {[%clk 0:00:39]} 18. hxg6 {[%clk 0:01:46.9]}
18... Qb6 {[%clk 0:00:39]} 19. Qxb6 {[%clk 0:01:06.9]} 19... axb6 {[%clk
0:00:35.6]} 20. gxh7+ {[%clk 0:01:02.8]} 20... Kh8 {[%clk 0:00:35.7]} 21. Re1
{[%clk 0:00:44.3]} 21... Rf7 {[%clk 0:00:31.6]} 22. Bg2 {[%clk 0:00:37.4]} 22...
Ng6 {[%clk 0:00:25.4]} 23. Ne2 {[%clk 0:00:27.5]} 23... Rxh7 {[%clk 0:00:23.2]}
24. Nd4 {[%clk 0:00:14.7]} 24... e5 {[%clk 0:00:21.2]} 25. Nb3 {[%clk
0:00:14.3]} 25... Nf4 {[%clk 0:00:20]} 26. Rxh7+ {[%clk 0:00:14.5]} 26... Kxh7
{[%clk 0:00:20.2]} 27. Bf1 {[%clk 0:00:15.4]} 27... Kg7 {[%clk 0:00:19.9]} 28.
a4 {[%clk 0:00:15.2]} 28... c5 {[%clk 0:00:19.3]} 29. a5 {[%clk 0:00:15.4]}
29... c4 {[%clk 0:00:19.6]} 30. Nd4 {[%clk 0:00:10.5]} 30... bxa5 {[%clk
0:00:17.4]} 31. Ne2 {[%clk 0:00:10.5]} 31... Nxe2+ {[%clk 0:00:15.4]} 32. Bxe2
{[%clk 0:00:10.7]} 32... d4 {[%clk 0:00:15.1]} 33. Bxc4 {[%clk 0:00:08]} 33...
Bc6 {[%clk 0:00:15]} 34. Be2 {[%clk 0:00:06.8]} 34... a4 {[%clk 0:00:14.7]} 35.
Rh1 {[%clk 0:00:05.8]} 35... Rh8 {[%clk 0:00:12.9]} 36. Rxh8 {[%clk 0:00:05.7]}
36... Kxh8 {[%clk 0:00:13.8]} 37. b4 {[%clk 0:00:05.5]} 37... axb3 {[%clk
0:00:12.4]} 38. cxb3 {[%clk 0:00:06.4]} 38... Kg7 {[%clk 0:00:11.8]} 39. b4
{[%clk 0:00:06.9]} 39... Kf7 {[%clk 0:00:11.1]} 40. b5 {[%clk 0:00:07.4]} 40...
Bd5 {[%clk 0:00:10.8]} 41. Kb2 {[%clk 0:00:07.7]} 41... Ke7 {[%clk 0:00:11]} 42.
Ka3 {[%clk 0:00:08.2]} 42... Kd6 {[%clk 0:00:10.9]} 43. Kb4 {[%clk 0:00:09.1]}
43... Bb7 {[%clk 0:00:09]} 44. b6 {[%clk 0:00:09]} 44... Kc6 {[%clk 0:00:08.4]}
45. Ka5 {[%clk 0:00:09.2]} 45... Kc5 {[%clk 0:00:08.5]} 46. Ba6 {[%clk
0:00:08.5]} 46... Bc6 {[%clk 0:00:08.7]} 47. b7 {[%clk 0:00:08.6]} 47... Bxb7
{[%clk 0:00:08.9]} 48. Bxb7 {[%clk 0:00:09.3]} 48... d3 {[%clk 0:00:09.2]} 49.
Ba6 {[%clk 0:00:09]} 49... Kd4 {[%clk 0:00:09]} 50. Kb4 {[%clk 0:00:08.4]} 50...
Ke3 {[%clk 0:00:07.6]} 51. Kc3 {[%clk 0:00:07]} 51... Kxf3 {[%clk 0:00:07.7]}
52. Kxd3 {[%clk 0:00:07.3]} 52... Kxg4 {[%clk 0:00:08.2]} 53. Bc8+ {[%clk
0:00:07.4]} 53... Kf4 {[%clk 0:00:08.3]} 54. Ke2 {[%clk 0:00:07.5]} 54... f5
{[%clk 0:00:08.6]} 55. Bb7 {[%clk 0:00:07.9]} 55... e4 {[%clk 0:00:08.9]} 56.
Kf2 {[%clk 0:00:08.2]} 56... Ke5 {[%clk 0:00:09.5]} 57. Bc6 {[%clk 0:00:08]}
57... f4 {[%clk 0:00:10.4]} 58. Bxe4 {[%clk 0:00:07.8]} 58... Kxe4 {[%clk
0:00:10.3]} 59. Ke2 {[%clk 0:00:08.2]} 59... f3+ {[%clk 0:00:10.8]} 60. Kf2
{[%clk 0:00:08.2]} 60... Kf4 {[%clk 0:00:09.7]} 61. Kf1 {[%clk 0:00:07]} 61...
f2 {[%clk 0:00:10.1]} 62. Kxf2 {[%clk 0:00:07.2]} 1/2-1/2